bitfinex/quotes_SOLUSD_20251207
["timestamp","ask_amount","ask_price","bid_price","bid_amount"]
[1765067147815,8.28015631,132.28,132.24,3.07241357]
[1765067148189,0.72,132.27,132.24,10.63430755]
[1765067148388,0.72,132.27,132.24,11.30430755]
[1765067152223,0.66,132.3,132.25,3.74241357]
[1765067152519,0.66,132.29,132.26,3.07241357]
[1765067153020,0.66,132.29,132.26,3.77241357]
[1765067153618,0.66,132.29,132.26,11.33275447]
[1765067154224,0.66,132.29,132.26,8.2603409]
[1765067158117,0.66,132.29,132.26,11.33275447]
[1765067158324,10.73049145,132.31,132.26,10.63275447]
[1765067158622,0.1,132.31,132.28,3.07241357]
[1765067159019,3.07241357,132.3,132.25,10.63365655]
[1765067159234,8.36814609,132.31,132.25,3.77241357]
[1765067159235,11.44055966,132.31,132.25,3.77241357]
[1765067159401,0.71,132.3,132.26,3.77241357]
[1765067160233,0.71,132.3,132.26,11.33322375]
[1765067161820,8.26859931,132.3,132.26,10.63322375]
[1765067162327,0.71,132.29,132.26,10.63322375]
[1765067162527,0.71,132.29,132.26,7.56081018]
[1765067162700,8.26932257,132.29,132.25,11.3337609]
[1765067163022,3.07241357,132.27,132.22,3.77241357]
[1765067163400,3.78241357,132.26,132.21,8.2635304]
[1765067163723,12.10241357,132.26,132.21,10.63594397]
[1765067164021,0.71,132.25,132.21,11.33594397]
[1765067167611,0.71,132.25,132.22,0.7]
[1765067167926,0.71,132.25,132.21,11.33594397]
[1765067168101,0.71,132.25,132.22,3.77241357]
[1765067168931,0.71,132.25,132.22,11.33539863]
[1765067169635,0.71,132.25,132.22,3.77241357]
[1765067170433,0.71,132.25,132.22,0.7]
[1765067170632,13.07697862,132.25,132.2,12.36954968]
[1765067170803,13.07697862,132.25,132.2,7.56418554]
[1765067171132,13.07697862,132.25,132.2,8.26418554]
[1765067171133,0.71,132.24,132.2,8.26418554]
[1765067171634,8.27161448,132.25,132.21,0.7]
[1765067171807,0.71,132.24,132.21,5.50536414]
[1765067172309,0.71,132.24,132.21,0.7]
[1765067172835,0.71,132.24,132.2,12.36954968]
[1765067173036,0.71,132.24,132.2,13.06954968]
[1765067173219,0.71,132.24,132.2,8.26418554]
[1765067173959,8.27200896,132.24,132.2,8.26418554]
[1765067174236,0.71,132.23,132.19,12.37020781]
[1765067174444,9.03,132.23,132.19,12.37020781]
[1765067174646,9.03,132.23,132.19,13.07020781]
[1765067174829,0.71,132.22,132.19,13.07020781]
[1765067175364,123.20319334,132.26,132.2,5.50536414]
[1765067175649,9.03,132.25,132.21,4.80536414]
[1765067175817,9.03,132.25,132.21,5.50536414]
[1765067176012,13.12536414,132.25,132.2,4.80536414]
[1765067176237,0.71,132.24,132.2,4.80536414]
[1765067176453,0.71,132.24,132.2,5.50536414]
[1765067176642,0.71,132.24,132.21,0.7]
[1765067178244,7.56258035,132.23,132.19,7.56486874]
[1765067178438,7.56258035,132.23,132.19,8.26486874]
[1765067178718,0.71,132.22,132.19,8.26486874]
[1765067180022,0.71,132.22,132.19,0.7]
[1765067180251,0.71,132.22,132.18,13.04068215]
[1765067180848,0.71,132.22,132.18,12.37068215]
[1765067181050,0.71,132.22,132.19,0.67]
[1765067181634,0.71,132.22,132.19,8.23486108]
[1765067181955,9.03,132.22,132.19,8.23486108]
[1765067186730,0.65,132.21,132.19,7.56486108]
[1765067187050,8.32,132.22,132.19,7.56486108]
[1765067187240,8.97,132.22,132.19,8.23486108]
[1765067188444,8.97,132.22,132.19,0.67]
[1765067188649,0.65,132.21,132.18,13.04067932]
[1765067189458,0.65,132.21,132.19,0.67]
[1765067190744,0.65,132.21,132.18,13.04067932]
[1765067191861,0.65,132.21,132.18,8.23531518]
[1765067193560,8.32,132.22,132.19,0.67]
[1765067193870,8.97,132.22,132.19,0.67]
[1765067195762,8.32,132.22,132.19,0.67]
[1765067196068,0.65,132.21,132.18,13.04067932]
[1765067196367,8.97,132.22,132.19,0.67]
[1765067198875,8.32,132.22,132.19,13.04021148]
[1765067199041,0.65,132.26,132.21,4.80536414]
[1765067199246,48.33558902,132.27,132.22,4.80536414]
[1765067199562,0.65,132.26,132.22,0.67]
[1765067200054,5.45536414,132.26,132.22,0.67]
[1765067200257,13.01627517,132.26,132.22,0.67]
[1765067200459,0.65,132.25,132.22,0.67]
[1765067200660,0.65,132.25,132.22,5.47536414]
[1765067200861,13.12536414,132.24,132.19,4.80536414]
[1765067201076,4.80536414,132.23,132.18,5.47536414]
[1765067201378,5.45536414,132.23,132.18,5.47536414]
[1765067201574,0.65,132.22,132.18,5.47536414]
[1765067201761,0.65,132.22,132.18,13.04063675]
[1765067202557,0.65,132.22,132.18,12.37063675]
[1765067202756,0.65,132.22,132.19,0.67]
[1765067206085,8.21323443,132.22,132.19,0.67]
[1765067206477,13.77536414,132.21,132.17,8.23586222]
[1765067206980,0.65,132.2,132.17,8.23586222]
[1765067207179,8.32,132.24,132.19,13.61530906]
[1765067207486,8.32,132.24,132.23,4.80536414]
[1765067207658,8.32,132.24,132.22,4.80536414]
[1765067207993,0.65,132.26,132.22,5.47536414]
[1765067208161,8.21128855,132.26,132.22,5.47536414]
[1765067209784,8.21128855,132.26,132.25,4.80536414]
[1765067213585,7.56029333,132.27,132.25,4.80536414]
[1765067213769,35.20828574,132.28,132.26,3.30536414]
[1765067213770,16.978864,132.28,132.26,3.30536414]
[1765067214088,16.978864,132.28,132.27,4.80536414]
[1765067214784,32.85875693,132.28,132.27,4.80536414]
[1765067217380,51.75806143,132.28,132.22,0.65]
[1765067217577,0.67,132.27,132.25,4.80536414]
[1765067217766,0.67,132.27,132.26,4.80536414]
[1765067218582,8.23029333,132.27,132.26,4.80536414]
[1765067218981,8.23029333,132.27,132.25,4.80536414]
[1765067219272,0.67,132.26,132.25,4.80536414]
[1765067219656,16.308864,132.25,132.23,4.80536414]
[1765067219863,8.32,132.24,132.21,4.80536414]
[1765067220194,31.69920858,132.24,132.21,4.80536414]
[1765067220369,0.67,132.23,132.21,4.80536414]
[1765067220776,0.67,132.23,132.19,0.65]
[1765067220777,7.56315232,132.22,132.19,0.65]
[1765067220988,8.32,132.21,132.19,0.65]
[1765067221287,8.32,132.21,132.19,8.21481856]
[1765067221664,8.32,132.21,132.2,0.65]
[1765067222072,8.32,132.21,132.2,5.45536414]
[1765067222268,7.562173,132.24,132.2,5.45536414]
[1765067222480,8.32,132.23,132.22,4.80536414]
[1765067222707,8.32,132.23,132.22,5.45536414]
[1765067222884,8.32,132.27,132.22,5.45536414]
[1765067223187,8.32,132.26,132.24,4.80536414]
[1765067223379,8.32,132.26,132.24,5.45536414]
[1765067223683,8.32,132.25,132.24,5.45536414]
[1765067225084,8.32,132.25,132.24,0.65]
[1765067232297,51.51602253,132.29,132.25,8.80994492]
[1765067232298,16.308864,132.29,132.25,8.80994492]
[1765067232481,25.298864,132.29,132.26,0.65]
[1765067232690,8.99,132.29,132.26,0.65]
[1765067234194,15.87930417,132.29,132.24,7.56190927]
[1765067234402,0.67,132.28,132.25,0.65]
[1765067234603,16.54930417,132.29,132.25,0.65]
[1765067234979,19.62236732,132.29,132.25,0.65]
[1765067240410,18.95236732,132.29,132.25,0.65]
[1765067240699,0.66,132.28,132.25,0.67]
[1765067242401,8.21994041,132.28,132.25,0.67]
[1765067245887,3.07306315,132.3,132.25,11.30439795]
[1765067245888,8.32,132.27,132.25,11.30439795]
[1765067246102,8.32,132.27,132.26,0.67]
[1765067247006,8.32,132.27,132.24,11.30502889]
[1765067247190,8.32,132.27,132.25,0.67]
[1765067254309,15.8803425,132.27,132.25,0.67]
[1765067254714,0.66,132.26,132.23,0.67]
[1765067255018,16.5403425,132.27,132.24,0.67]
[1765067255317,15.8803425,132.27,132.24,0.67]
[1765067256319,0.66,132.26,132.23,0.67]
[1765067256915,19.61340565,132.27,132.23,0.67]
[1765067260214,3.73306315,132.26,132.23,0.67]
[1765067260801,38.51413899,132.27,132.23,0.67]
[1765067261210,3.73306315,132.26,132.23,0.67]
[1765067261622,3.73306315,132.25,132.21,0.67]
[1765067261925,8.32,132.24,132.21,0.67]
[1765067262119,16.54216792,132.24,132.21,0.67]
[1765067263901,0.66,132.23,132.2,0.67]
[1765067265402,8.22269939,132.23,132.2,0.67]
[1765067265726,11.29576254,132.23,132.19,0.67]
[1765067266028,0.66,132.22,132.19,0.67]
[1765067266203,8.32,132.21,132.19,0.67]
[1765067267518,8.32,132.21,132.19,8.23486513]
[1765067269411,0.66,132.22,132.19,8.23486513]
[1765067269611,8.32,132.21,132.19,8.23486513]
[1765067270303,8.32,132.21,132.19,0.67]
[1765067275423,8.32,132.21,132.19,8.23478277]
[1765067275625,8.32,132.22,132.2,8.80994492]
[1765067275816,8.32,132.23,132.2,9.45994492]
[1765067276015,8.32,132.23,132.21,0.65]
[1765067279338,11.29452402,132.25,132.21,0.65]
[1765067279539,8.32,132.23,132.21,0.65]
[1765067280734,9.01,132.23,132.21,0.65]
[1765067286346,8.32,132.23,132.21,0.65]
[1765067289741,9.01,132.23,132.21,0.65]
[1765067289931,8.32,132.23,132.21,0.65]
[1765067291039,27.00857322,132.25,132.21,0.65]
[1765067291241,8.32,132.24,132.21,0.65]
[1765067291437,0.69,132.24,132.21,0.65]
[1765067292359,8.32,132.23,132.21,0.65]
[1765067292858,17.06386836,132.24,132.21,0.65]
[1765067293041,9.01,132.23,132.21,0.65]
[1765067293241,0.69,132.23,132.21,0.65]
[1765067293449,8.32,132.22,132.21,0.65]
[1765067294154,0.69,132.23,132.21,0.65]
[1765067295243,8.32,132.22,132.21,0.65]
[1765067295641,0.69,132.23,132.21,0.65]
[1765067295845,8.32,132.22,132.21,0.65]
[1765067296136,0.69,132.23,132.21,0.65]
[1765067296441,8.32,132.22,132.21,0.65]
[1765067296960,0.69,132.23,132.21,0.65]
[1765067297154,13.12675068,132.22,132.18,0.66]
[1765067297547,30.19061904,132.22,132.18,0.66]
[1765067297952,29.50061904,132.22,132.18,0.66]
[1765067298659,37.06394151,132.22,132.18,8.22540952]
[1765067298862,5.49675068,132.21,132.18,0.66]
[1765067299161,28.21283745,132.21,132.18,0.66]
[1765067299542,27.52283745,132.21,132.18,0.66]
[1765067299857,4.80675068,132.19,132.16,0.66]
[1765067300060,8.32,132.18,132.16,0.66]
[1765067300247,8.32,132.18,132.15,16.3769792]
[1765067300439,8.32,132.18,132.16,0.66]
[1765067301252,8.32,132.18,132.16,8.22650127]
[1765067301459,12.3705059,132.21,132.16,8.22650127]
[1765067301757,8.32,132.2,132.17,9.46994492]
[1765067302457,8.32,132.2,132.18,0.66]
[1765067309344,8.32,132.21,132.18,13.03198509]
[1765067309549,8.32,132.21,132.19,0.66]
[1765067325461,8.32,132.21,132.19,8.22478431]
[1765067327804,18.90276578,132.26,132.2,14.2766956]
[1765067327959,8.32,132.25,132.22,8.80994492]
[1765067328165,5.50675068,132.27,132.23,0.66]
[1765067328166,8.80994492,132.26,132.23,0.66]
[1765067328366,9.50994492,132.26,132.23,0.66]
[1765067328573,8.32,132.25,132.23,0.66]
[1765067329180,8.32,132.25,132.23,5.46675068]
[1765067329555,8.32,132.25,132.23,0.66]
[1765067330061,8.32,132.25,132.23,5.46675068]
[1765067330261,8.32,132.25,132.23,0.66]
[1765067330774,8.26094409,132.26,132.23,0.66]
[1765067331354,8.32,132.25,132.23,0.66]
[1765067331666,8.26094409,132.26,132.23,0.66]
[1765067332289,8.32,132.25,132.23,0.66]
[1765067333471,8.26094409,132.26,132.23,0.66]
[1765067333662,8.32,132.25,132.23,0.66]
[1765067333864,16.60161562,132.25,132.22,0.66]
[1765067334076,0.72,132.24,132.21,5.46675068]
[1765067334276,0.72,132.24,132.21,4.80675068]
[1765067334582,9.04,132.23,132.19,5.46675068]
[1765067334764,9.04,132.23,132.19,21.84143067]
[1765067334956,9.04,132.23,132.2,0.66]
[1765067336082,30.22143067,132.23,132.2,0.66]
[1765067340393,29.50143067,132.23,132.2,5.46675068]
[1765067340600,29.50143067,132.23,132.21,0.71]
[1765067342592,37.76414891,132.23,132.21,0.71]
[1765067342772,37.06414891,132.23,132.21,0.71]
[1765067344590,29.50143067,132.23,132.21,0.71]
[1765067344888,8.26221129,132.24,132.21,0.71]
[1765067345070,8.32,132.23,132.21,13.08037805]
[1765067345271,8.32,132.23,132.22,0.71]
[1765067347872,0.7,132.29,132.23,0.71]
[1765067348096,0.7,132.29,132.23,14.3266956]
[1765067348097,13.12675068,132.28,132.23,14.3266956]
[1765067348500,0.7,132.27,132.23,9.51994492]
[1765067348803,0.7,132.27,132.24,0.71]
[1765067350894,0.7,132.27,132.23,16.37242857]
[1765067351075,0.7,132.27,132.23,17.08242857]
[1765067351679,13.06705047,132.27,132.21,13.6166956]
[1765067351870,13.06705047,132.27,132.21,14.3266956]
[1765067352091,0.7,132.26,132.21,14.3266956]
[1765067352291,0.7,132.26,132.21,13.6166956]
[1765067352590,0.7,132.26,132.22,0.71]
[1765067352775,0.7,132.26,132.22,5.51675068]
[1765067353392,0.7,132.26,132.23,0.71]
[1765067353595,8.32,132.25,132.23,0.71]
[1765067353787,8.32,132.25,132.22,5.51675068]
[1765067353989,9.02,132.25,132.22,5.51675068]
[1765067355396,8.32,132.25,132.23,0.71]
[1765067356002,9.02,132.25,132.22,5.51675068]
[1765067356389,9.02,132.25,132.22,3.78522142]
[1765067356589,9.02,132.25,132.22,0.71]
[1765067358804,0.7,132.24,132.2,11.34942987]
[1765067359203,0.7,132.24,132.2,10.63942987]
[1765067359504,0.7,132.24,132.21,0.71]
[1765067359705,0.7,132.24,132.2,11.34942987]
[1765067360312,0.7,132.24,132.21,0.7]
[1765067360521,8.32,132.25,132.22,3.07522142]
[1765067361023,8.99,132.25,132.22,0.7]
[1765067363216,0.67,132.25,132.22,0.7]
[1765067363422,8.99,132.25,132.22,0.7]
[1765067363620,8.99,132.25,132.22,8.26315185]
[1765067365820,8.99,132.25,132.22,7.56315185]
[1765067365998,8.99,132.25,132.23,0.7]
[1765067366517,0.67,132.25,132.23,0.7]
[1765067366817,8.99,132.25,132.23,0.7]
[1765067367815,8.99,132.25,132.22,8.26315185]
[1765067368014,8.99,132.25,132.22,0.7]
[1765067368406,0.67,132.24,132.21,8.2636043]
[1765067368598,0.67,132.24,132.21,0.7]
[1765067370905,8.23201782,132.24,132.21,0.7]
[1765067372114,0.67,132.23,132.19,8.26471703]
[1765067372293,0.67,132.23,132.2,0.7]
[1765067373727,3.07522142,132.24,132.2,8.2638317]
[1765067374037,16.55157051,132.25,132.2,11.33905312]
[1765067374326,46.58083428,132.26,132.21,0.7]
[1765067374534,8.32,132.24,132.21,9.50994492]
[1765067375016,8.32,132.24,132.22,0.7]
[1765067375416,8.99,132.24,132.21,0.7]
[1765067376015,8.99,132.24,132.21,8.26345603]
[1765067376016,8.32,132.24,132.21,8.26345603]
[1765067376219,8.32,132.24,132.21,17.07340095]
[1765067376414,8.32,132.24,132.22,0.7]
[1765067381719,8.99,132.24,132.22,0.7]
[1765067381922,8.32,132.24,132.22,0.7]
[1765067385636,8.32,132.24,132.22,8.26314959]
[1765067387854,8.32,132.25,132.23,9.47994492]
[1765067388336,8.32,132.25,132.24,0.67]
[1765067388511,8.32,132.25,132.23,9.47994492]
[1765067390043,8.32,132.25,132.23,17.04248166]
[1765067391240,9.0,132.25,132.21,0.65]
[1765067391449,9.0,132.25,132.22,0.65]
[1765067391747,16.56151817,132.25,132.22,0.65]
[1765067394837,0.68,132.24,132.22,0.65]
[1765067396746,15.88151817,132.25,132.22,0.65]
[1765067396949,16.56151817,132.25,132.22,0.65]
[1765067397547,0.68,132.24,132.22,0.65]
[1765067398653,11.31739194,132.24,132.2,7.56413851]
[1765067398825,11.31739194,132.24,132.2,0.65]
[1765067399151,0.68,132.23,132.19,0.65]
[1765067399447,3.75522142,132.23,132.19,0.65]
[1765067400149,12.09522142,132.22,132.17,8.28593893]
[1765067400638,0.7,132.21,132.18,0.72]
[1765067401145,8.32,132.22,132.19,11.88516634]
[1765067401354,8.32,132.22,132.2,0.72]
[1765067402156,8.32,132.22,132.2,8.28396796]
[1765067402331,8.32,132.22,132.2,7.56396796]
[1765067402538,8.32,132.22,132.21,0.72]
[1765067403646,8.32,132.22,132.21,8.28372437]
[1765067405954,8.32,132.25,132.22,8.28302444]
[1765067406161,8.32,132.25,132.23,0.72]
[1765067408052,8.32,132.25,132.23,8.28247771]
[1765067408247,8.32,132.25,132.24,0.72]
[1765067409866,0.7,132.27,132.24,0.72]
[1765067410030,9.02,132.27,132.24,0.72]
[1765067413254,8.32,132.27,132.24,0.72]
[1765067413457,8.32,132.27,132.24,8.28191123]
[1765067413958,8.32,132.27,132.25,0.72]
[1765067417170,8.32,132.27,132.25,8.28137632]
[1765067419467,8.32,132.27,132.26,0.72]
[1765067420381,8.32,132.27,132.25,0.66]
[1765067425175,0.68,132.26,132.22,9.46994492]
[1765067425427,8.32,132.25,132.22,9.46994492]
[1765067425669,8.32,132.25,132.23,0.66]
[1765067428176,8.32,132.25,132.23,5.46379443]
[1765067428882,8.32,132.25,132.23,13.02612853]
[1765067429181,8.32,132.25,132.23,5.46379443]
[1765067429896,8.32,132.25,132.23,13.02621944]
[1765067433093,8.32,132.25,132.21,7.56331114]
[1765067433307,0.68,132.24,132.2,4.80379443]
[1765067433604,9.0,132.24,132.2,0.66]
[1765067433978,0.68,132.23,132.2,0.66]
[1765067434994,0.68,132.23,132.19,21.17823505]
[1765067434995,8.24261054,132.23,132.19,12.36829013]
[1765067435179,8.24261054,132.23,132.19,13.02829013]
[1765067435391,0.68,132.22,132.19,13.02829013]
[1765067436891,9.0,132.22,132.19,13.02829013]
[1765067437292,9.0,132.22,132.19,5.46379443]
[1765067437470,9.0,132.22,132.2,0.66]
[1765067438491,9.0,132.22,132.19,13.02859716]
[1765067439294,9.0,132.22,132.2,0.66]
[1765067439495,0.68,132.21,132.18,4.80379443]
[1765067439791,0.68,132.21,132.17,5.46379443]
[1765067439969,13.04859716,132.21,132.17,5.46379443]
[1765067440412,0.68,132.2,132.17,5.46379443]
[1765067440761,8.24439739,132.2,132.15,0.66]
[1765067440964,8.32,132.19,132.15,13.03057018]
[1765067441165,9.0,132.19,132.15,13.03057018]
[1765067441384,0.68,132.18,132.15,13.03057018]
[1765067442383,0.68,132.18,132.15,12.37057018]
[1765067442586,0.68,132.18,132.16,0.66]
[1765067443180,0.68,132.18,132.15,13.03057018]
[1765067443770,0.68,132.18,132.16,0.66]
[1765067445095,0.68,132.18,132.15,13.03057018]
[1765067445972,0.68,132.18,132.15,0.66]
[1765067446173,8.24545476,132.18,132.14,12.57150229]
[1765067446476,8.24545476,132.18,132.15,0.67]
[1765067446978,0.68,132.18,132.15,0.67]
[1765067447185,0.68,132.18,132.15,5.47379443]
[1765067449883,8.24559344,132.18,132.14,0.2]
[1765067450400,0.68,132.17,132.14,0.88]
[1765067451382,0.68,132.17,132.14,8.44766309]
[1765067451683,0.68,132.17,132.14,13.25145752]
[1765067452203,16.56491627,132.19,132.15,0.68]
[1765067452382,16.56491627,132.19,132.15,5.48379443]
[1765067452584,8.32,132.18,132.15,5.48379443]
[1765067452783,8.32,132.18,132.16,0.68]
[1765067453178,9.0,132.18,132.16,0.68]
[1765067454512,9.0,132.18,132.15,0.68]
[1765067456188,8.32,132.18,132.15,0.68]
[1765067456388,9.0,132.18,132.15,0.68]
[1765067458384,8.32,132.18,132.15,13.05086221]
[1765067458590,8.32,132.19,132.16,13.61373935]
[1765067458810,111.86434084,132.2,132.16,14.27373935]
[1765067459113,120.85434084,132.2,132.17,0.66]
[1765067460799,5.47379443,132.19,132.14,13.23108676]
[1765067461000,5.47379443,132.19,132.14,0.86]
[1765067461202,5.47379443,132.18,132.14,0.86]
[1765067461414,8.32,132.17,132.14,0.86]
[1765067461717,8.99,132.17,132.14,0.86]
[1765067463605,8.99,132.17,132.14,13.23142189]
[1765067464108,8.99,132.17,132.14,8.42762746]
[1765067464286,8.99,132.17,132.14,13.23142189]
[1765067464814,8.99,132.17,132.15,0.66]
[1765067465306,16.55498924,132.19,132.15,8.22711327]
[1765067465505,8.32,132.19,132.16,13.61373935]
[1765067465713,8.32,132.19,132.16,14.27373935]
[1765067465916,8.32,132.19,132.17,0.66]
[1765067466406,15.88386785,132.21,132.17,5.46379443]
[1765067466811,16.55386785,132.21,132.18,0.66]
[1765067468592,8.99,132.21,132.18,0.66]
[1765067469714,8.99,132.21,132.18,5.46379443]
[1765067473122,8.99,132.21,132.18,0.66]
[1765067473337,7.56259584,132.23,132.2,4.80379443]
[1765067473497,8.32,132.23,132.2,4.80379443]
[1765067473821,8.32,132.23,132.21,0.66]
[1765067474324,8.32,132.23,132.21,5.46379443]
[1765067474697,8.32,132.23,132.21,0.66]
[1765067480427,104.97,132.24,132.21,0.66]
[1765067480724,8.32,132.23,132.21,0.66]
[1765067481820,8.99,132.23,132.2,11.30046893]
[1765067482020,8.32,132.23,132.21,0.66]
[1765067484330,8.99,132.23,132.21,0.66]
[1765067484929,8.32,132.23,132.21,0.66]
[1765067493434,8.32,132.23,132.21,8.22372317]
[1765067493634,104.3,132.24,132.22,0.66]
[1765067493832,8.22981768,132.28,132.23,11.88616875]
[1765067494016,8.32,132.27,132.23,11.88616875]
[1765067494334,8.32,132.27,132.24,0.66]
[1765067494930,0.67,132.26,132.22,3.73622383]
[1765067495330,0.67,132.26,132.23,0.66]
[1765067495526,8.23141905,132.26,132.21,10.639947]
[1765067495832,8.23141905,132.26,132.22,0.66]
[1765067495833,8.32,132.25,132.22,0.66]
[1765067496218,8.32,132.25,132.22,11.29935233]
[1765067496628,8.32,132.25,132.23,0.66]
[1765067500238,8.32,132.25,132.23,8.22257309]
[1765067500462,8.32,132.25,132.24,0.66]
[1765067501743,0.67,132.28,132.24,11.29811108]
[1765067501915,8.32,132.27,132.24,11.29811108]
[1765067502110,8.32,132.27,132.25,0.66]
[1765067502314,8.99,132.27,132.25,0.66]
[1765067503440,7.56001728,132.28,132.25,0.66]
[1765067503628,8.32,132.28,132.25,8.22139401]
[1765067503826,8.99,132.28,132.25,8.22139401]
[1765067504034,8.99,132.28,132.26,0.66]
[1765067504232,8.99,132.28,132.25,8.22139401]
[1765067505047,8.99,132.28,132.25,7.56139401]
[1765067505351,8.32,132.28,132.26,0.66]
[1765067505928,8.32,132.28,132.26,8.22076378]
[1765067506342,8.32,132.28,132.27,0.66]
[1765067509034,8.32,132.28,132.25,11.29748029]
[1765067509236,8.32,132.28,132.26,0.66]
[1765067510335,9.04,132.28,132.26,0.66]
[1765067510534,8.32,132.28,132.26,0.66]
[1765067513942,8.32,132.29,132.26,11.29692244]
[1765067514458,104.3,132.3,132.27,9.50994492]
[1765067514459,112.62,132.3,132.27,9.50994492]
[1765067514658,8.32,132.3,132.27,9.50994492]
[1765067514955,8.32,132.3,132.28,0.7]
[1765067516956,0.68,132.29,132.26,8.26076091]
[1765067517161,9.0,132.3,132.26,8.26076091]
[1765067517337,8.32,132.3,132.27,0.7]
[1765067517736,9.0,132.3,132.27,0.7]
[1765067518537,15.87867185,132.3,132.25,10.63749286]
[1765067518737,0.68,132.29,132.26,0.7]
[1765067518960,0.68,132.29,132.26,8.26067119]
[1765067519263,8.32,132.3,132.27,0.7]
[1765067519845,9.0,132.3,132.27,0.7]
[1765067520239,8.32,132.3,132.27,0.7]
[1765067520564,8.32,132.3,132.27,9.50994492]
[1765067520937,9.0,132.3,132.27,9.50994492]
[1765067521263,9.0,132.3,132.27,17.07001462]
[1765067523660,9.0,132.3,132.28,0.7]
[1765067525775,8.32,132.3,132.28,0.7]
[1765067526073,8.32,132.3,132.28,8.25969921]
[1765067526642,9.0,132.3,132.28,8.25969921]
[1765067526842,8.32,132.3,132.28,8.25969921]
[1765067527042,9.0,132.3,132.28,8.25969921]
[1765067527561,9.0,132.3,132.27,16.37006933]
[1765067527764,9.0,132.3,132.27,17.07006933]
[1765067528146,10.73434382,132.31,132.25,16.56112734]
[1765067528350,10.73434382,132.31,132.26,0.7]
[1765067528351,0.68,132.29,132.26,0.7]
[1765067528659,8.98,132.3,132.26,8.26047027]
[1765067528869,0.68,132.29,132.26,8.26047027]
[1765067529066,19.00600537,132.31,132.27,0.7]
[1765067529237,0.1,132.31,132.28,10.6358936]
[1765067529769,0.1,132.31,132.29,0.7]
[1765067531178,0.1,132.31,132.29,11.33515202]
[1765067531566,0.1,132.31,132.3,0.7]
[1765067535476,0.1,132.31,132.3,17.0685239]
[1765067536177,0.1,132.31,132.28,8.25916194]
[1765067536178,0.78,132.31,132.28,8.25916194]
[1765067536361,0.78,132.31,132.29,0.7]
[1765067536754,0.78,132.31,132.28,8.25916194]
[1765067537183,0.78,132.31,132.28,11.33538577]
[1765067540379,0.78,132.31,132.29,0.71]
[1765067541371,0.78,132.31,132.28,12.36008032]
[1765067541679,0.78,132.31,132.29,0.71]
[1765067542694,0.1,132.31,132.29,0.71]
[1765067543589,0.82,132.31,132.27,12.36106905]
[1765067543884,5.62091838,132.31,132.26,16.37038329]
[1765067544070,5.62091838,132.31,132.26,17.08038329]
[1765067544266,5.62091838,132.31,132.27,0.71]
[1765067544267,0.72,132.3,132.27,0.71]
[1765067549288,0.72,132.3,132.27,5.51091838]
[1765067549491,7.65847975,132.31,132.28,5.51091838]
[1765067549667,8.37847975,132.31,132.28,5.51091838]
[1765067549870,8.37847975,132.31,132.29,0.71]
[1765067551062,15.95847975,132.31,132.29,0.71]
[1765067551267,16.67847975,132.31,132.29,0.71]
[1765067551485,16.67847975,132.31,132.28,4.80091838]